{"text_format":"1","workbook":"xlsx","n_sheets":7,"sheets":["Status","Incident_Information","Food","Inhabited_Areas","DW1","Printing","Answers"],"not_rendered":{"charts":0,"images":0,"macros":1,"external_links":0,"defined_names":5,"comments":3,"pivot_tables":0},"unopened":[],"bounds":{"document_bytes":16777216,"sheet_cells":100000,"rows_first":2000,"rows_last":500,"rows_between":2000,"halvings":0,"cell_chars":16384,"cell_head_chars":4096},"cells_cut":0,"cells_raw":0,"read":"whole","date_system":"1900"}

{"sheet":"Status","index":0,"n_rows":3,"n_cols":4,"rows_kept":3,"cut":false,"hidden":false,"merged":[]}
[1.2,"SJW","2018-12-11","Page \"Answers\" updated to reflect changes made in UKRHRI food and recovery v4.1"]
[1.1000000000000001,"SJW","2016-03-03","Error corrected in option list for pre-deposition options for cereals and grassland"]
[1,"SJW","2014-07-07"]

{"sheet":"Incident_Information","index":1,"n_rows":44,"n_cols":3,"rows_kept":44,"cut":false,"hidden":false,"merged":[[43,0,43,3],[29,0,29,3],[19,0,19,3],[2,0,2,3],[27,0,28,3],[30,0,42,3],[3,0,3,2],[4,0,4,2],[5,0,5,2],[6,0,6,2],[7,0,7,2],[8,0,8,2],[11,0,11,2],[12,0,12,2],[13,0,13,2],[14,0,14,2],[0,0,0,3],[1,0,1,3],[9,0,9,3],[10,0,10,3],[26,0,26,3],[20,0,20,3],[15,0,15,2],[16,0,16,2],[17,0,17,2],[18,0,18,2],[24,0,25,0]]}
["Radiation recovery record form: Incident information"]
["This form should be completed in conjunction with the UK Recovery Handbook for Radiation Incidents and the Recovery Navigation Tool (see right for links)"]
["Please provide contact details"]
["Name"]
["Organisation"]
["Email address"]
["Role and responsibility in incident (eg RCG Chair)"]
["Other agencies or departments involved in the incident (e.g. Defra, DH, FSA, APHA, DfT, EA, PHE)"]
["Date of completing form (dd/mm/yy)"]
["Please provide information regarding the incident"]
["If fields are not applicable, or if answers are not known, please leave blank or enter an approximate date or location"]
["Incident name"]
["City/Location"]
["County"]
["Postcode"]
["Date contamination occurred"]
["Date contamination reported"]
["Incident status"]
["Ref No (if applicable)"]
["What were the circumstances/source of the incident?"]
["Please indicate yes/no for each incident type, including all that apply. If \"other\" then please provide more information"]
["Civil nuclear site accident",null,"Transport accident (civil)"]
["Military nuclear site accident",null,"Transport accident (military)"]
["Radiopharmaceutical/non-nuclear accident",null,"Nuclear terrorism"]
["Other",null,"Radiological terrorism"]
[null,null,"Overseas accident"]
["How do you know it was this type of incident? (eg informed by police)"]
[]
[]
["Add any additional information here:"]
[]
[]
[]
[]
[]
[]
[]
[]
[]
[]
[]
[]
[]
["Add any relevant hyperlnks by clicking the \"Add hyperlinks\" button:"]

{"sheet":"Food","index":2,"n_rows":198,"n_cols":16,"rows_kept":198,"cut":false,"hidden":false,"merged":[[18,0,18,1],[44,15,45,15],[70,15,71,15],[99,15,100,15],[126,15,127,15],[148,15,149,15],[163,15,164,15],[178,15,179,15],[198,15,200,15],[178,13,179,14],[178,11,179,12],[70,5,71,5],[70,6,71,6],[70,7,71,7],[70,8,71,8],[70,9,71,9],[70,10,71,10],[70,11,71,11],[70,12,71,12],[178,3,179,4],[178,5,179,6],[178,7,179,8],[148,12,149,12],[126,3,127,3],[126,4,127,4],[126,5,127,5],[198,3,200,3],[198,4,200,4],[198,5,200,5],[198,6,200,6],[198,7,200,7],[198,8,200,8],[198,9,200,9],[126,9,127,9],[126,8,127,8],[148,3,149,3],[148,4,149,4],[148,5,149,5],[148,6,149,6],[148,7,149,7],[148,8,149,8],[148,9,149,9],[178,9,179,10],[165,0,165,1],[198,2,200,2],[198,0,200,1],[163,0,164,1],[178,0,179,1],[126,0,127,1],[148,0,149,1],[178,2,179,2],[148,2,149,2],[126,2,127,2],[9,2,9,3],[1,2,1,3],[44,14,45,14],[70,14,71,14],[198,10,200,10],[198,11,200,11],[198,12,200,12],[163,14,164,14],[126,13,127,13],[126,14,127,14],[148,13,149,13],[148,14,149,14],[99,10,100,10],[99,11,100,11],[99,12,100,12],[99,13,100,13],[99,14,100,14],[44,10,45,10],[198,14,200,14],[126,12,127,12],[198,13,200,13],[44,11,45,11],[44,12,45,12],[44,13,45,13],[0,0,0,4],[2,2,2,3],[3,2,3,3],[19,0,19,1],[70,0,71,1],[20,0,20,1],[99,0,100,1],[99,2,100,2],[99,3,100,3],[99,4,100,4],[46,0,46,1],[1,0,1,1],[44,0,45,1],[44,2,45,2],[44,3,45,3],[44,4,45,4],[70,2,71,2],[70,3,71,3],[70,4,71,4],[4,2,4,3],[5,2,5,3],[6,2,6,3],[7,2,7,3],[8,2,8,3],[10,0,10,4],[163,2,164,3],[163,4,164,5],[163,6,164,7],[163,8,164,9],[163,10,164,11],[163,12,164,13],[99,6,100,6],[44,7,45,7],[44,8,45,8],[44,9,45,9],[126,11,127,11],[99,8,100,8],[99,9,100,9],[99,5,100,5],[126,6,127,6],[126,7,127,7],[126,10,127,10],[44,5,45,5],[44,6,45,6],[148,10,149,10],[148,11,149,11],[99,7,100,7],[70,13,71,13]]}
["Step 1a Select the Food Production System(s) that has/have been contaminated  - click on green button(s) to select/deselect"]
["Production System",null,"Sources/examples",null,"Contaminated?"]
["Cereals and grassland",null,"Wheat, barley, oats, oil seed rape, rye, maize, grassland",null,"No"]
["Fruit and vegetables",null,"All fruit and vegetables, including herbs and edible flowers",null,"No"]
["Milk",null,"Milk and dairy products (cow, sheep, goat)",null,"No"]
["Meat",null,"Beef, lamb, pork, fowl, chicken",null,"No"]
["Eggs",null,"Hens, ducks, geese and wildfowl",null,"No"]
["Honey",null,"Beehives",null,"No"]
["Freshwater and marine fish",null,"Marine and freshwater fish and shellfish",null,"No"]
["Domestic and wild foods and game",null,"Domestically produced fruit, vegetables, meat, eggs; wild foods; game",null,"No"]
["Step 1b Select the radionuclide(s) that are involved - click on the green buttons to select/deselect"]
["No",null,null,"No"]
["No",null,null,"No"]
["No",null,null,"No"]
["No",null,null,"No"]
["No",null,null,"No"]
["No"]
[]
["Applicable Management Options (MOs) are listed below. At each of steps 2 to 7, answer the question for each available MO then click the \"filter\" button at the bottom of the list. If the \"justification\" column is coloured green, then provide any relevant information there.",null,"Step 2: Is the MO eliminated on basis of common sense (not expert knowledge)?","If eliminating management option(s) after step 2, provide justification for this in the green shaded cells","Step 3: Is the MO eliminated, based on applicability for radionuclide(s)?","If eliminating management option(s) after step 3, provide justification for this in the green shaded cells, or note if option not suitable for some radionuclides, while being considered for others","Step 4: Is the MO eliminated because of major constraints (wastes, technical, costs, time, social) in this scenario?","If eliminating management option(s) after step 4, OR if retaining an option with major constraints, provide justification for this in the green shaded cells","Step 5: Is the MO eliminated because of effectiveness?","If eliminating management option(s) after step 5, provide justification for this in the green shaded cells","Step 6: Is the MO eliminated because of wastes or incremental doses?","If eliminating management option(s) after step 6, OR if retaining an option with wastes or doses, provide justification for this in the green shaded cells","Step 7: Is the MO eliminated by any information in the datasheet? (MUST ANSWER Y OR N TO COMPLETE RECORD)","If eliminating management option(s) after step 7, provide justification for this in the green shaded cells","Step 8: Select and combine options that should be considered as part of the strategy. Based on answers given for steps 1 to 7 the remaining MOs are listed below. Those with a pink background have issues that may need attention.","Summary of comments relevant to remaining options, as supplied by user at each of steps 2 to 7"]
[]
[]
["Cereals and grassland",null,null,null,null,null,null,null,null,null,null,null,null,null,"Cereals and grassland"]
["Pre-deposition options",null,null,null,null,null,null,null,null,null,null,null,null,null,"Pre-deposition options"]
["Close air intake systems at food processing plant (1)"]
["Protect harvested crops from contamination (3)"]
["General applicability",null,null,null,null,null,null,null,null,null,null,null,null,null,"General applicability"]
["Natural attenuation (with monitoring) (5)"]
["Product recall (6)"]
["Restrict entry into the foodchain (inc FEPA orders) (7)"]
["Select alternative land use (8)"]
["Cereals/grassland",null,null,null,null,null,null,null,null,null,null,null,null,null,"Cereals/grassland"]
["Application of lime to soils (9)"]
["Application of K fertilisers to soils (10)"]
["Deep ploughing (11)"]
["Land improvement (12) (grassland only)"]
["Removal of topsoil (13) (cereal crops only)"]
["Shallow ploughing (14)"]
["Skim and burial ploughing (15)"]
["Waste disposal",null,null,null,null,null,null,null,null,null,null,null,null,null,"Waste disposal"]
["Composting (34)"]
["Incineration (36)"]
["Landfill (37)"]
["Ploughing in of a standing crop (39)"]
["Soil washing (42) (cereal crops only)"]
[]
[]
[]
["Fruit and vegetables",null,null,null,null,null,null,null,null,null,null,null,null,null,"Fruit and vegetables"]
["Pre-deposition options",null,null,null,null,null,null,null,null,null,null,null,null,null,"Pre-deposition options"]
["Close air intake systems at food processing plant (1)"]
["Prevent contamination of greenhouse crops (2)"]
["Protect harvested crops from contamination (3)"]
["General applicability"]
["Natural attenuation (with monitoring) (5)"]
["Product recall (6)"]
["Restrict entry into the foodchain (inc FEPA orders) (7)"]
["Select alternative land use (8)"]
["Fruit and vegetables"]
["Application of lime to soils (9)"]
["Application of K fertilisers to soils (10)"]
["Deep ploughing (11)"]
["Removal of topsoil (13)"]
["Shallow ploughing (14)"]
["Skim and burial ploughing (15)"]
["Waste disposal"]
["Composting (34)"]
["Incineration (36)"]
["Landfill (37)"]
["Ploughing in of a standing crop (39)"]
["Soil washing (42)"]
[]
[]
[]
["Milk",null,null,null,null,null,null,null,null,null,null,null,null,null,"Milk"]
["Pre-deposition options",null,null,null,null,null,null,null,null,null,null,null,null,null,"Pre-deposition options"]
["Close air intake systems at food processing plant (1)"]
["Short term sheltering of animals (4)"]
["General applicability",null,null,null,null,null,null,null,null,null,null,null,null,null,"General applicability"]
["Natural attenuation (with monitoring) (5)"]
["Product recall (6)"]
["Restrict entry into the foodchain (inc FEPA orders) (7)"]
["Select alternative land use (8)"]
["Milk",null,null,null,null,null,null,null,null,null,null,null,null,null,"Milk"]
["Addition of AFCF to concentrate ration (16)"]
["Addition of calcium to concentrate ration (17)"]
["Addition of clay minerals to feed (18)"]
["Clean feeding (20)"]
["Selective grazing (23)"]
["Slaughtering (culling) of livestock (24)"]
["Suppression of lactation before slaughter (25)"]
["Waste disposal",null,null,null,null,null,null,null,null,null,null,null,null,null,"Waste disposal"]
["Biological treatment (digestion) of milk (32)"]
["Burial of carcasses (33)"]
["Disposal of contaminated milk to sea (35)"]
["Incineration (36)"]
["Landfill (37)"]
["Landspreading milk/slurry (38)"]
["Processing and storage of milk products for disposal (40)"]
["Rendering (41)"]
[]
[]
[]
["Meat",null,null,null,null,null,null,null,null,null,null,null,null,null,"Meat"]
["Pre-deposition options",null,null,null,null,null,null,null,null,null,null,null,null,null,"Pre-deposition options"]
["Close air intake systems at food processing plant (1)"]
["Short term sheltering of animals (4)"]
["General applicability",null,null,null,null,null,null,null,null,null,null,null,null,null,"General applicability"]
["Natural attenuation (with monitoring) (5)"]
["Product recall (6)"]
["Restrict entry into the foodchain (inc FEPA orders) (7)"]
["Select alternative land use (8)"]
["Meat",null,null,null,null,null,null,null,null,null,null,null,null,null,"Meat"]
["Addition of AFCF to concentrate ration (16)"]
["Addition of calcium to concentrate ration (17)"]
["Addition of clay minerals to feed (18)"]
["Administer AFCF boli to ruminants (19)"]
["Clean feeding (20)"]
["Live monitoring (21)"]
["Manipulation of slaughter times (22)"]
["Selective grazing (23)"]
["Slaughtering (culling) of livestock (24)"]
["Waste disposal",null,null,null,null,null,null,null,null,null,null,null,null,null,"Waste disposal"]
["Burial of carcasses (33)"]
["Incineration (36)"]
["Landfill (37)"]
["Rendering (41)"]
[]
[]
[]
["Eggs",null,null,null,null,null,null,null,null,null,null,null,null,null,"Eggs"]
["Pre-deposition options",null,null,null,null,null,null,null,null,null,null,null,null,null,"Pre-deposition options"]
["Close air intake systems at food processing plant (1)"]
["Short term sheltering of animals (4)"]
["General applicability",null,null,null,null,null,null,null,null,null,null,null,null,null,"General applicability"]
["Natural attenuation (with monitoring) (5)"]
["Product recall (6)"]
["Restrict entry into the foodchain (inc FEPA orders) (7)"]
["Select alternative land use (8)"]
["Eggs"]
["Addition of AFCF to concentrate ration (16)"]
["Addition of calcium to concentrate ration (17)"]
["Addition of clay minerals to feed (18)"]
["Clean feeding (20)"]
["Selective grazing (23)"]
["Slaughtering (culling) of livestock (24)"]
["Waste disposal",null,null,null,null,null,null,null,null,null,null,null,null,null,"Waste disposal"]
["Incineration (36)"]
["Landfill (37)"]
[]
[]
[]
["Honey",null,null,null,null,null,null,null,null,null,null,null,null,null,"Honey"]
["Pre-deposition options",null,null,null,null,null,null,null,null,null,null,null,null,null,"Pre-deposition options"]
["Close air intake systems at food processing plant (1)"]
["General applicability",null,null,null,null,null,null,null,null,null,null,null,null,null,"General applicability"]
["Natural attenuation (with monitoring) (5)"]
["Product recall (6)"]
["Restrict entry into the foodchain (inc FEPA orders) (7)"]
["Honey",null,null,null,null,null,null,null,null,null,null,null,null,null,"Honey"]
["No options specific to honey"]
["Waste disposal",null,null,null,null,null,null,null,null,null,null,null,null,null,"Waste disposal"]
["Incineration (36)"]
["Landfill (37)"]
[]
[]
[]
["Fish",null,null,null,null,null,null,null,null,null,null,null,null,null,"Fish"]
["Pre-deposition options",null,null,null,null,null,null,null,null,null,null,null,null,null,"Pre-deposition options"]
["Close air intake systems at food processing plant (1)"]
["General applicability",null,null,null,null,null,null,null,null,null,null,null,null,null,"General applicability"]
["Natural attenuation (with monitoring) (5)"]
["Product recall (6)"]
["Restrict entry into the foodchain (inc FEPA orders) (7)"]
["Fish",null,null,null,null,null,null,null,null,null,null,null,null,null,"Fish"]
["No options specific to fish"]
["Waste disposal",null,null,null,null,null,null,null,null,null,null,null,null,null,"Waste disposal"]
["Incineration (36)"]
["Landfill (37)"]
[]
[]
[]
["Domestic food, game and wild food",null,null,null,null,null,null,null,null,null,null,null,null,null,"Domestic food, game and wild food"]
["Pre-deposition options",null,null,null,null,null,null,null,null,null,null,null,null,null,"Pre-deposition options"]
["Protect harvested crops from contamination (3)"]
["General applicability",null,null,null,null,null,null,null,null,null,null,null,null,null,"General applicability"]
["Natural attenuation (with monitoring) (5)"]
["Domestic food, game and wild food",null,null,null,null,null,null,null,null,null,null,null,null,null,"Domestic food, game and wild food"]
["Removal of topsoil (13)"]
["Clean feeding (domestic livestock) (26)"]
["Dietary advice (domestic) (27)"]
["Processing or storage of domestic food products (28)"]
["Provision of monitoring equipment (domestic produce) (29)"]
["Restrictions on foraging (gathering wild foods) (30)"]
["Restrictions during hunting and fishing seasons (31)"]
["Waste disposal",null,null,null,null,null,null,null,null,null,null,null,null,null,"Waste disposal"]
["Composting (34)"]
["Incineration (36)"]
["Landfill (37)"]

{"sheet":"Inhabited_Areas","index":3,"n_rows":143,"n_cols":16,"rows_kept":143,"cut":false,"hidden":false,"merged":[[43,15,44,15],[63,15,64,15],[86,15,87,15],[106,15,107,15],[123,15,124,15],[143,15,145,15],[123,6,124,6],[143,0,145,1],[143,2,145,2],[143,3,145,3],[143,4,145,4],[143,5,145,5],[143,6,145,6],[123,0,124,1],[123,2,124,2],[123,3,124,3],[123,4,124,4],[125,0,125,1],[123,5,124,5],[143,14,145,14],[123,7,124,7],[123,8,124,8],[123,9,124,9],[123,10,124,10],[123,11,124,11],[123,12,124,12],[123,13,124,13],[123,14,124,14],[143,9,145,9],[143,10,145,10],[143,11,145,11],[143,7,145,7],[143,8,145,8],[143,12,145,12],[143,13,145,13],[86,8,87,8],[86,13,87,13],[86,14,87,14],[106,0,107,1],[106,2,107,2],[106,3,107,3],[106,4,107,4],[106,5,107,5],[106,6,107,6],[106,7,107,7],[106,8,107,8],[106,9,107,9],[106,10,107,10],[106,11,107,11],[106,12,107,12],[106,13,107,13],[106,14,107,14],[86,10,87,10],[86,11,87,11],[86,12,87,12],[88,0,88,1],[108,0,108,1],[43,3,44,3],[43,4,44,4],[43,5,44,5],[63,0,64,1],[63,2,64,2],[63,3,64,3],[63,4,64,4],[63,5,64,5],[86,0,87,1],[86,2,87,2],[86,3,87,3],[86,4,87,4],[86,5,87,5],[7,2,7,3],[6,2,6,3],[1,2,1,3],[0,0,0,4],[45,0,45,1],[22,0,22,1],[1,0,1,1],[2,2,2,3],[3,2,3,3],[4,2,4,3],[5,2,5,3],[21,0,21,1],[8,0,8,4],[63,13,64,13],[63,14,64,14],[43,0,44,1],[43,2,44,2],[86,9,87,9],[43,13,44,13],[43,14,44,14],[65,0,65,1],[43,6,44,6],[43,7,44,7],[43,12,44,12],[63,6,64,6],[63,7,64,7],[63,8,64,8],[63,9,64,9],[63,10,64,10],[43,8,44,8],[43,9,44,9],[43,10,44,10],[43,11,44,11],[63,11,64,11],[63,12,64,12],[86,6,87,6],[86,7,87,7]]}
["Step 1a: Select the Surface(s) that have been contaminated (Step 1) (Click on purple button to select/deselect)"]
["Surface",null,"Description",null,"Contaminated?"]
["Buildings - external surfaces",null,"External hard surfaces eg walls, roofs, windows and doors of all buildings",null,"No"]
["Buildings - internal surfaces",null,"Indoor building surfaces eg walls, floors, ceilings, soft furnishings and furniture",null,"No"]
["Buildings - semi-enclosed surfaces",null,"Transport networks: train and bus stations, underground systems",null,"No"]
["Roads and paved areas",null,"Roads, pavements, large paved or asphalt areas eg playgrounds, yards car parks",null,"No"]
["Vehicles",null,"Public transportation vehicles: cars, lorries, trains, buses, trams, boats, aircraft",null,"No"]
["Soils and vegetation",null,"Lawn, flowerbeds, and vegetable plots associated with the gardens of residential dwellings, landscaping around commercial and public buildings, allotments, parks, playing fields and other managed green areas. Also includes all woody plants (eg trees, shrubs and bushes) associated with these areas.",null,"No"]
["Step 1b: Select the radionuclide(s) that are involved (Click on purple button to select/deselect)"]
["No",null,null,"No"]
["No",null,null,"No"]
["No",null,null,"No"]
["No",null,null,"No"]
["No",null,null,"No"]
["No",null,null,"No"]
["No",null,null,"No"]
["No",null,null,"No"]
["No",null,null,"No"]
["No",null,null,"No"]
["No",null,null,"No"]
[]
["Applicable Management Options (MOs) are listed below. At each of steps 2 to 7, answer the question for each available MO then click the \"filter\" button at the bottom of the list. If the \"justification\" column is coloured purple, then provide any relevant information there.",null,"Step 2: Is the MO eliminated on basis of common sense (not expert knowledge)?","If eliminating management option(s) after step 2, provide justification for this in the purple shaded cells","Step 3: Is the MO eliminated as inappropriate for radionuclide(s) considered?","If eliminating management option(s) after step 3, provide justification for this in the purple shaded cells","Step 4: Is the MO eliminated because of major constraints (wastes, technical, costs, time, social) in this scenario?","If eliminating management option(s) after step 4, OR if retaining an option with major constraints, provide justification for this in the purple shaded cells","Step 5: Is the MO eliminated because of effectiveness?","If eliminating management option(s) after step 5, provide justification for this in the purple shaded cells","Step 6: Is the MO eliminated because of wastes?","If eliminating management option(s) after step 6, OR if retaining an option with wastes, provide justification for this in the purple shaded cells","Step 7: Is the MO eliminated by any information in the datasheet? (MUST ANSWER Y OR N TO COMPLETE RECORD)","If eliminating management option(s) after step 7, provide justification for this in the purple shaded cells","Step 8: Select and combine options that should be considered as part of the strategy. Based on answers given for steps 1 to 7 the remaining MOs are listed below. Those with a pink background have issues that may need attention.","Summary of comments relevent to remaining options, as supplied by user at each of steps 2 to 7"]
[]
["Buildings - external surfaces",null,null,null,null,null,null,null,null,null,null,null,null,null,"Buildings - external surfaces"]
["Restrict access options",null,null,null,null,null,null,null,null,null,null,null,null,null,"Restrict access options"]
["Control workforce access (1)"]
["Permanent relocation from residential areas (3)"]
["Restrict public access (4)"]
["Temporary relocation from residential areas (5)"]
["Remediation options",null,null,null,null,null,null,null,null,null,null,null,null,null,"Remediation options"]
["Demolish/dismantle and dispose (8)"]
["Fix and strip coatings (9)"]
["Natural attenuation (with monitoring) (13)"]
["Pressure and fire hosing (15)"]
["Reactive liquids (16)"]
["Roof cleaning including gutters and downpipes (17)"]
["Snow/ice removal (18)"]
["Surface removal (buildings) (20)"]
["Tie down-bitumen (permanent) (23)"]
["Tie down-water or sand (temporary)(23)"]
["Treatment of walls with ammonium nitrate (25)"]
["Treatment of waste water (26)"]
["Water based cleaning (29)"]
[]
[]
[]
["Buildings - internal surfaces",null,null,null,null,null,null,null,null,null,null,null,null,null,"Buildings - internal surfaces"]
["Restrict access options",null,null,null,null,null,null,null,null,null,null,null,null,null,"Restrict access options"]
["Control workforce access (1)"]
["Permanent relocation from residential areas (3)"]
["Restrict public access (4)"]
["Temporary relocation from residential areas (5)"]
["Remediation options",null,null,null,null,null,null,null,null,null,null,null,null,null,"Remediation options"]
["Demolish/dismantle and dispose (8)"]
["Fix and strip coatings (9)"]
["Modify operation/cleaning of ventilation systems (12)"]
["Natural attenuation (with monitoring) (13)"]
["Reactive liquids (16)"]
["Storage, covering, gentle cleaning of precious objects (19)"]
["Surface removal (indoor) (21)"]
["Treatment of waste water (26)"]
["Vacuum cleaning (28)"]
["Water based cleaning (29)"]
[]
[]
[]
["Buildings - semi-enclosed surfaces",null,null,null,null,null,null,null,null,null,null,null,null,null,"Buildings - semi-enclosed surfaces"]
["Restrict access options",null,null,null,null,null,null,null,null,null,null,null,null,null,"Restrict access options"]
["Control workforce access (1)"]
["Permanent relocation from residential areas (3)"]
["Restrict public access (4)"]
["Temporary relocation from residential areas (5)"]
["Remediation options",null,null,null,null,null,null,null,null,null,null,null,null,null,"Remediation options"]
["Demolish/dismantle and dispose (8)"]
["Fix and strip coatings (9)"]
["Modify operation/cleaning of ventilation systems (12)"]
["Natural attenuation (with monitoring) (13)"]
["Pressure and fire hosing (15)"]
["Reactive liquids (16)"]
["Storage, covering, gentle cleaning of precious objects (19)"]
["Surface removal (buildings) (20)"]
["Tie down-bitumen (permanent) (23)"]
["Tie down-water or sand (temporary)(23)"]
["Treatment of waste water (26)"]
["Vacuum cleaning (28)"]
["Water based cleaning (29)"]
[]
[]
[]
["Roads and paved areas",null,null,null,null,null,null,null,null,null,null,null,null,null,"Roads and paved areas"]
["Restrict access options",null,null,null,null,null,null,null,null,null,null,null,null,null,"Restrict access options"]
["Control workforce access (1)"]
["Impose restrictions on transport (2)"]
["Permanent relocation from residential areas (3)"]
["Restrict public access (4)"]
["Temporary relocation from residential areas (5)"]
["Remediation options",null,null,null,null,null,null,null,null,null,null,null,null,null,"Remediation options"]
["Fix and strip coatings (9)"]
["Natural attenuation (with monitoring) (13)"]
["Pressure and fire hosing (15)"]
["Snow/ice removal (18)"]
["Surface removal and replacement (22)"]
["Tie down-bitumen (permanent) (23)"]
["Tie down-water or sand (temporary)(23)"]
["Treatment of waste water (26)"]
["Vacuum cleaning (28)"]
[]
[]
[]
["Vehicles",null,null,null,null,null,null,null,null,null,null,null,null,null,"Vehicles"]
["Restrict access options",null,null,null,null,null,null,null,null,null,null,null,null,null,"Restrict access options"]
["Impose restrictions on transport (2)"]
["Remediation options",null,null,null,null,null,null,null,null,null,null,null,null,null,"Remediation options"]
["Demolish/dismantle and dispose (8)"]
["Fix and strip coatings (9)"]
["Natural attenuation (with monitoring) (13)"]
["Pressure and fire hosing (15)"]
["Reactive liquids (16)"]
["Snow/ice removal (18)"]
["Storage, covering, gentle cleaning of precious objects (19)"]
["Treatment of waste water (26)"]
["Vacuum cleaning (28)"]
["Water based cleaning (29)"]
[]
[]
[]
["Soils and vegetation",null,null,null,null,null,null,null,null,null,null,null,null,null,"Soil and vegetation"]
["Restrict access options",null,null,null,null,null,null,null,null,null,null,null,null,null,"Restrict access options"]
["Control workforce access (1)"]
["Permanent relocation from residential areas (3)"]
["Restrict public access (4)"]
["Temporary relocation from residential areas (5)"]
["Remediation options",null,null,null,null,null,null,null,null,null,null,null,null,null,"Remediation options"]
["Collection of leaves (6)"]
["Cover grass/soil with clean soil/asphalt (7)"]
["Grass cutting and removal (10)"]
["Manual and mechanical digging (11)"]
["Natural attenuation (with monitoring) (13)"]
["Ploughing methods (14)"]
["Snow/ice removal (18)"]
["Tie down (23)"]
["Topsoil and turf removal (24)"]
["Tree and shrub pruning and removal (27)"]

{"sheet":"DW1","index":4,"n_rows":89,"n_cols":6,"rows_kept":89,"cut":false,"hidden":false,"merged":[[4,0,4,4],[0,0,0,5],[1,0,1,1],[2,0,2,1],[2,2,2,3],[3,0,3,3],[18,0,87,5],[88,0,88,5],[5,0,5,2],[6,0,6,4],[7,0,7,2],[11,0,11,5],[12,0,16,4],[17,0,17,5]]}
["Please provide information about the supply (or group of supplies) being considered:"]
["A: Is the supply (or group of supplies) public or private?"]
["B: Name of supply (maximum of 25 characters)"]
["If there is another another supply (or group of supplies) to consider click the button to add another supply, then answer questions below, as prompted for this supply"]
["Please answer Question 1:"]
["Q1. Is it suspected that drinking water has been, or could become, contaminated?"]
["If answer to Question 1 is \"Yes\", please answer Questions 2 and 3, then answer further questions as prompted:"]
["Q2. Is it suspected that contamination of the water supply has occurred after treatment?"]
["Q3. Based on early estimates of activity concentrations in drinking water, is it VERY UNLIKELY that levels will exceed gross alpha or beta screening levels? (Table 5.5)","Q4. Are measured concentrations in treated drinking water (water supplied “at the tap”) > screening levels? (Table 5.5)","Q5. Are concentrations in treated drinking water > UK Action Levels? (Table 1.3)","Q6. Is there a requirement to reduce activity concentrations in drinking water irrespective of screening levels being exceeded?","Q7. Is the radionuclide short lived?","Q8. Is adding/modifying treatment of private supply an option?"]
[]
[]
["User supplied information:"]
[]
[]
[]
[]
[]
["Complete record of supplied answers, user supplied information, and recommendations:"]
[]
[]
[]
[]
[]
[]
[]
[]
[]
[]
[]
[]
[]
[]
[]
[]
[]
[]
[]
[]
[]
[]
[]
[]
[]
[]
[]
[]
[]
[]
[]
[]
[]
[]
[]
[]
[]
[]
[]
[]
[]
[]
[]
[]
[]
[]
[]
[]
[]
[]
[]
[]
[]
[]
[]
[]
[]
[]
[]
[]
[]
[]
[]
[]
[]
[]
[]
[]
[]
[]
["User added hyperlinks to related documents:"]

{"sheet":"Printing","index":5,"n_rows":0,"n_cols":0,"rows_kept":0,"cut":false,"hidden":false,"merged":[]}

{"sheet":"Answers","index":6,"n_rows":117,"n_cols":27,"rows_kept":117,"cut":false,"hidden":false,"merged":[[0,0,0,4],[6,0,6,4],[11,14,11,15],[56,25,56,26]]}
["FOOD PRODUCTION SYSTEMS AND INHABITED AREAS:"]
["Acceptable answers to filter question for steps 2, 3, 5, and 7",null,"Acceptable answers to filter question for step 4",null,"Acceptable answers to filter question for step 6"]
["Y",null,"No major constraints, Eliminate option due to major constraint, Major constraint but continue to consider option",null,"No wastes or inc. doses, Wastes or inc. doses but continue to consider, "]
["N",null,"Eliminate option due to major constraint",null,"Wastes or inc. doses but continue to consider"]
[null,null,"Major constraint, but continue to consider option",null,"Eliminate due to wastes or inc. doses"]
[]
["DRINKING WATER"]
["Acceptable answers to question 4",null,"Acceptable answers to yes/no questions",null,"Acceptable types of supply"]
["Very unlikely to exceed screening levels",null,"Y",null,"Public"]
["Possible to exceed screening levels",null,"N",null,"Private"]
[]
[null,null,null,null,null,null,null,null,null,null,null,null,null,null,"food nuclides"]
["APPLICABILITY OF OPTIONS - FOOD (Y=applicable; N=restrictions)",null,"Am-241","Co-60","Cs-134","Cs-137","I-131","Pu-238","Ru-103","Ru-106","Se-75","Sr-89","Sr-90",null,{"$f":"IF(Food!A12=\"Yes\",1,0)","v":0},{"$f":"IF(Food!D12=\"Yes\",1,0)","v":0}]
["Addition of AFCF to concentrate ration (16)",2,"N","N","Y","Y","N","N","N","N","N","N","N",{"$f":"COUNTIF(C14:M14,\"Y\")","v":2},{"$f":"IF(Food!A13=\"Yes\",1,0)","v":0},{"$f":"IF(Food!D13=\"Yes\",1,0)","v":0}]
["Addition of calcium to concentrate ration (17)",3,"N","N","N","N","N","N","N","N","N","Y","Y",{"$f":"COUNTIF(C15:M15,\"Y\")","v":2},{"$f":"IF(Food!A14=\"Yes\",1,0)","v":0},{"$f":"IF(Food!D14=\"Yes\",1,0)","v":0}]
["Addition of clay minerals to feed (18)",4,"N","N","Y","Y","N","N","N","N","N","N","N",2,{"$f":"IF(Food!A15=\"Yes\",1,0)","v":0},{"$f":"IF(Food!D15=\"Yes\",1,0)","v":0}]
["Administer AFCF boli to ruminants (19)",5,"N","N","Y","Y","N","N","N","N","N","N","N",2,{"$f":"IF(Food!A16=\"Yes\",1,0)","v":0},{"$f":"IF(Food!D16=\"Yes\",1,0)","v":0}]
["Application of K fertilisers to soils (10)",6,"N","N","Y","Y","N","N","N","N","N","N","N",2,{"$f":"IF(Food!A17=\"Yes\",1,0)","v":0},{"$f":"SUM(O13:O18,P13:P17)","v":0}]
["Application of lime to soils (9)",7,"Y","Y","N","N","N","Y","Y","Y","N","Y","Y",7]
["Biological treatment (digestion) of milk (32)",8,"Y","Y","Y","Y","Y","Y","Y","Y","N","Y","Y",10]
["Burial of carcasses (33)",9,"Y","N","Y","Y","N","Y","Y","Y","Y","N","N",7]
["Clean feeding (20)",10,"Y","Y","Y","Y","Y","Y","Y","Y","Y","Y","Y",11]
["Clean feeding (domestic livestock) (26)",11,"Y","Y","Y","Y","Y","Y","Y","Y","Y","Y","Y",11]
["Close air intake systems at food processing plant (1)",12,"Y","Y","Y","Y","Y","Y","Y","Y","Y","Y","Y",11]
["Composting (34)",13,"Y","Y","Y","Y","N","Y","Y","Y","Y","Y","Y",10]
["Deep ploughing (11)",14,"Y","Y","Y","Y","N","Y","N","Y","Y","N","Y",8]
["Dietary advice (domestic) (27)",15,"Y","Y","Y","Y","Y","Y","Y","Y","Y","Y","Y",11]
["Disposal of contaminated milk to sea (35)",16,"N","N","Y","Y","Y","N","N","N","N","Y","Y",5]
["Incineration (36)",17,"Y","Y","N","N","N","Y","Y","Y","N","Y","Y",7]
["Land improvement (12)",18,"Y","Y","Y","Y","N","Y","N","Y","N","N","Y",7]
["Landfill (37)",19,"Y","Y","Y","Y","N","Y","Y","Y","Y","N","N",8]
["Landspreading milk/slurry (38)",20,"Y","Y","Y","Y","Y","Y","Y","Y","N","Y","Y",10]
["Live monitoring (21)",21,"N","Y","Y","Y","Y","N","Y","Y","Y","N","N",7]
["Manipulation of slaughter times (22)",22,"Y","Y","Y","Y","Y","Y","Y","Y","Y","Y","Y",11]
["Natural attenuation (with monitoring) (5)",23,"N","Y","Y","Y","Y","N","Y","Y","Y","N","N",7]
["Ploughing in of a standing crop (39)",24,"N","N","Y","Y","Y","N","Y","Y","N","Y","Y",7]
["Prevent contamination of greenhouse crops (2)",25,"Y","Y","Y","Y","Y","Y","Y","Y","Y","Y","Y",11]
["Processing and storage of milk products for disposal (40)",26,"Y","N","Y","Y","Y","Y","Y","Y","Y","Y","Y",10]
["Processing or storage of domestic food products (28)",27,"N","N","N","N","Y","N","N","N","N","Y","N",2]
["Product recall (6)",28,"Y","Y","Y","Y","Y","Y","Y","Y","Y","Y","Y",11]
["Protect harvested crops from contamination (3)",29,"Y","Y","Y","Y","Y","Y","Y","Y","Y","Y","Y",11]
["Provision of monitoring equipment (domestic produce) (29)",30,"Y","Y","Y","Y","Y","N","Y","Y","Y","N","N",8]
["Removal of topsoil (13)",31,"Y","Y","Y","Y","N","Y","N","Y","Y","N","Y",8]
["Rendering (41)",32,"Y","Y","Y","Y","N","Y","Y","Y","Y","Y","Y",10]
["Restrict entry into the foodchain (inc FEPA orders) (7)",33,"Y","Y","Y","Y","Y","Y","Y","Y","Y","Y","Y",11]
["Restrictions during hunting and fishing seasons (31)",34,"Y","Y","Y","Y","Y","Y","Y","Y","Y","Y","Y",11]
["Restrictions on foraging (gathering wild foods) (30)",35,"Y","Y","Y","Y","Y","Y","Y","Y","Y","Y","Y",11]
["Select alternative land use (8)",36,"N","Y","Y","Y","N","N","N","N","N","N","Y",4]
["Selective grazing (23)",37,"N","Y","Y","Y","N","N","N","N","Y","Y","Y",6]
["Shallow ploughing (14)",38,"Y","Y","Y","Y","N","Y","N","Y","Y","N","Y",8]
["Short term sheltering of animals (4)",39,"Y","Y","Y","Y","Y","Y","Y","Y","Y","Y","Y",11]
["Skim and burial ploughing (15)",40,"Y","Y","Y","Y","N","Y","N","Y","Y","N","Y",8]
["Slaughtering (culling) of livestock (24)",41,"N","Y","Y","Y","N","N","N","N","Y","Y","Y",6]
["Soil washing (42)",42,"Y","Y","Y","Y","Y","Y","Y","Y","Y","Y","Y",11]
["Suppression of lactation before slaughter (25)",43,"N","Y","Y","Y","N","N","N","N","Y","Y","Y",6]
[]
[null,null,null,null,null,null,null,null,null,null,null,null,null,null,null,null,null,null,null,null,null,null,null,null,null,"Inhabited nuclides"]
["APPLICABILITY OF OPTIONS - INHABITED (Y=applicable; N=restrictions)",null,"Am-241","Ba-140","Ce-144","Co-60","Cs-134","Cs-136","Cs-137","I-131","Ir-192","Mo-99/Tc-99m","Pu-238","Pu-239","Ra-226","Ru-103","Ru-106","Se-75","Sr-89","Sr-90/Y-90","Te-132","U-235","Yb-169","Zr-95",null,{"$f":"IF(Inhabited_Areas!A10=\"Yes\",1,0)","v":0},{"$f":"IF(Inhabited_Areas!D10=\"Yes\",1,0)","v":0}]
["Collection of leaves (6)",2,"Y","N","Y","Y","Y","N","Y","N","Y","N","Y","Y","Y","Y","Y","Y","Y","Y","N","Y","Y","Y",null,{"$f":"IF(Inhabited_Areas!A11=\"Yes\",1,0)","v":0},{"$f":"IF(Inhabited_Areas!D11=\"Yes\",1,0)","v":0}]
["Control workforce access (1)",3,"Y","Y","Y","Y","Y","Y","Y","Y","Y","Y","Y","Y","Y","Y","Y","Y","Y","Y","Y","Y","Y","Y",null,{"$f":"IF(Inhabited_Areas!A12=\"Yes\",1,0)","v":0},{"$f":"IF(Inhabited_Areas!D12=\"Yes\",1,0)","v":0}]
["Cover grass/soil with clean soil/asphalt (7)",4,"Y","N","Y","Y","Y","N","Y","N","N","N","Y","Y","Y","Y","Y","Y","Y","Y","N","Y","N","Y",null,{"$f":"IF(Inhabited_Areas!A13=\"Yes\",1,0)","v":0},{"$f":"IF(Inhabited_Areas!D13=\"Yes\",1,0)","v":0}]
["Demolish/dismantle and dispose (8)",5,"Y","N","N","Y","Y","N","Y","N","N","N","Y","Y","Y","N","Y","N","N","Y","N","Y","N","N",null,{"$f":"IF(Inhabited_Areas!A14=\"Yes\",1,0)","v":0},{"$f":"IF(Inhabited_Areas!D14=\"Yes\",1,0)","v":0}]
["Fix and strip coatings (9)",6,"Y","N","Y","Y","Y","N","Y","N","Y","N","Y","Y","Y","Y","Y","Y","Y","Y","N","Y","N","Y",null,{"$f":"IF(Inhabited_Areas!A15=\"Yes\",1,0)","v":0},{"$f":"IF(Inhabited_Areas!D15=\"Yes\",1,0)","v":0}]
["Grass cutting and removal (10)",7,"Y","Y","Y","Y","Y","Y","Y","Y","Y","N","Y","Y","Y","Y","Y","Y","Y","Y","Y","Y","Y","Y",null,{"$f":"IF(Inhabited_Areas!A16=\"Yes\",1,0)","v":0},{"$f":"IF(Inhabited_Areas!D16=\"Yes\",1,0)","v":0}]
["Impose restrictions on transport (2)",8,"Y","Y","Y","Y","Y","Y","Y","Y","Y","Y","Y","Y","Y","Y","Y","Y","Y","Y","Y","Y","Y","Y",null,{"$f":"IF(Inhabited_Areas!A17=\"Yes\",1,0)","v":0},{"$f":"IF(Inhabited_Areas!D17=\"Yes\",1,0)","v":0}]
["Manual and mechanical digging (11)",9,"Y","N","Y","Y","Y","N","Y","N","Y","N","Y","Y","Y","Y","Y","Y","Y","Y","N","Y","Y","Y",null,{"$f":"IF(Inhabited_Areas!A18=\"Yes\",1,0)","v":0},{"$f":"IF(Inhabited_Areas!D18=\"Yes\",1,0)","v":0}]
["Modify operation/cleaning of ventilation systems (12)",10,"N","N","Y","Y","Y","N","Y","N","Y","N","N","N","N","Y","Y","Y","Y","Y","N","N","N","Y",null,{"$f":"IF(Inhabited_Areas!A19=\"Yes\",1,0)","v":0},{"$f":"IF(Inhabited_Areas!D19=\"Yes\",1,0)","v":0}]
["Natural attenuation (with monitoring) (13)",11,"N","Y","Y","Y","Y","Y","Y","Y","Y","Y","N","N","N","Y","Y","Y","N","N","Y","N","Y","Y",null,{"$f":"IF(Inhabited_Areas!A20=\"Yes\",1,0)","v":0},{"$f":"IF(Inhabited_Areas!D20=\"Yes\",1,0)","v":0}]
["Permanent relocation from residential areas (3)",12,"Y","N","N","Y","Y","N","Y","N","N","N","Y","Y","Y","N","Y","N","N","Y","N","Y","N","N",null,null,{"$f":"SUM(Z58:AA68)","v":0}]
["Ploughing methods (14)",13,"Y","N","Y","Y","Y","N","Y","N","Y","N","Y","Y","Y","Y","Y","Y","Y","Y","N","Y","Y","Y"]
["Pressure and fire hosing (15)",14,"Y","Y","Y","Y","Y","Y","Y","Y","Y","Y","Y","Y","Y","Y","Y","Y","Y","Y","Y","Y","Y","Y"]
["Reactive liquids (16)",15,"Y","N","Y","Y","Y","N","Y","N","Y","N","Y","Y","Y","Y","Y","N","Y","Y","N","Y","Y","Y"]
["Restrict public access (4)",16,"Y","Y","Y","Y","Y","Y","Y","Y","Y","Y","Y","Y","Y","Y","Y","Y","Y","Y","Y","Y","Y","Y"]
["Roof cleaning including gutters and downpipes (17)",17,"Y","N","Y","Y","Y","N","Y","N","Y","N","Y","Y","Y","Y","Y","Y","Y","Y","N","Y","N","Y"]
["Snow/ice removal (18)",18,"Y","Y","Y","Y","Y","Y","Y","Y","Y","N","Y","Y","Y","Y","Y","Y","Y","Y","N","Y","Y","Y"]
["Storage, covering, gentle cleaning of precious objects (19)",19,"Y","Y","Y","Y","Y","Y","Y","Y","Y","Y","Y","Y","Y","Y","Y","Y","Y","Y","Y","Y","Y","Y"]
["Surface removal (buildings) (20)",20,"Y","N","Y","Y","Y","N","Y","N","Y","N","Y","Y","Y","N","Y","Y","N","Y","N","Y","N","Y"]
["Surface removal (indoor) (21)",21,"Y","N","Y","Y","Y","N","Y","N","Y","N","Y","Y","Y","Y","Y","Y","Y","Y","N","Y","N","Y"]
["Surface removal and replacement (22)",22,"Y","N","Y","Y","Y","N","Y","N","N","N","Y","Y","Y","N","Y","N","N","Y","N","Y","N","N"]
["Temporary relocation from residential areas (5)",23,"Y","Y","Y","Y","Y","Y","Y","Y","Y","Y","Y","Y","Y","Y","Y","Y","Y","Y","Y","Y","Y","Y"]
["Tie down (23)",24,"Y","N","N","N","N","N","N","N","N","N","Y","Y","Y","N","N","N","Y","Y","N","Y","N","N"]
["Tie down-bitumen (permanent) (23)",25,"Y","N","N","N","N","N","N","N","N","N","Y","Y","Y","N","N","N","Y","Y","N","Y","N","N"]
["Tie down-water or sand (temporary)(23)",26,"Y","N","N","N","N","N","N","N","N","N","Y","Y","Y","N","N","N","Y","Y","N","Y","N","N"]
["Topsoil and turf removal (24)",27,"Y","N","Y","Y","Y","N","Y","N","N","N","Y","Y","Y","N","Y","Y","N","Y","N","Y","N","N"]
["Treatment of walls with ammonium nitrate (25)",28,"N","N","Y","N","Y","Y","Y","N","N","N","N","N","N","N","N","N","N","N","N","N","N","N"]
["Treatment of waste water (26)",29,"Y","Y","Y","Y","Y","Y","Y","Y","Y","Y","Y","Y","Y","Y","Y","Y","Y","Y","Y","Y","Y","Y"]
["Tree and shrub pruning and removal (27)",30,"Y","N","Y","Y","Y","N","Y","N","N","N","Y","Y","Y","Y","Y","Y","Y","Y","N","Y","N","Y"]
["Vacuum cleaning (28)",31,"Y","Y","Y","Y","Y","Y","Y","Y","Y","Y","Y","Y","Y","Y","Y","Y","Y","Y","Y","Y","Y","Y"]
["Water based cleaning (29)",32,"Y","Y","Y","Y","Y","Y","Y","Y","Y","Y","Y","Y","Y","Y","Y","Y","Y","Y","Y","Y","Y","Y"]
[]
["FOOD PRODUCTION SYSTEMS - ROW NUMBERS","n1","n2","t1","t2","t3","t4"]
["cereals",24,44,2,4,7,5]
["fruit and veg",50,70,3,4,6,5]
["milk",76,99,2,4,7,8]
["meat",105,126,2,4,9,4]
["eggs",132,148,2,4,6,2]
["honey",154,163,1,3,1,2]
["fish",169,178,1,3,1,2]
["domestic",184,198,1,1,7,3]
["n1 = row number of 1st management option for the specified food production system"]
["n2 = row number of last management option for the specified food production system"]
["t1 = number of rows in display containing predeposition management options for the specified food production system (option rows only, no headers included in this value)"]
["t2 = number of rows in display containing general applicability management options for the specified food production system (option rows only, no headers included in this value)"]
["t3 = number of rows in display containing management options specific to this food type for the specified food production system (option rows only, no headers included in this value)"]
["t4 = number of rows in display containing waste disposal management options for the specified food production system (option rows only, no headers included in this value)"]
[]
["INHABITED AREAS - ROW NUMBERS","n1","n2","rest","rem"]
["external buildings",26,43,4,13]
["internal buildings",49,63,4,10]
["semi enclosed surfaces",69,86,4,13]
["roads and paved",92,106,5,9]
["vehicles",112,123,1,10]
["soils and vegetation",129,143,4,10]
["n1 = row number of 1st management option for the specified surface"]
["n2 = row number of last management option for the specified surface"]
["rem = number of rows in display containing remediation management options for the specified surface (option rows only, no headers included in this value)"]
["rest = number of rows in display containing restrict access management options for the specified surface (option rows only, no headers included in this value)"]